[Event "January 2 Late 2024"]
[Site "https://www.chess.com"]
[Date "2024.01.02"]
[Round "9"]
[White "Martinez Ramirez, Lennis"]
[Black "Toktomushev, Teimur"]
[Result "0-1"]
[Board "78"]
[TimeControl "180+1"]
[WhiteFideId "3509079"]
[BlackFideId "14176726"]
[WhiteElo "2682"]
[BlackElo "2467"]
[WhiteTeam "CUB"]
[BlackTeam "UKR"]
[WhiteClock "0:01:58"]
[BlackClock "0:00:06"]

1. b3 {[%clk 0:03:00]}  e5 {[%clk 0:01:57]} 2. g3 {[%clk 0:03:01]}  d5 {[%clk 0:01:57]} 3. Bg2 {[%clk 0:03:02]}  Nf6 {[%clk 0:01:58]} 4. Bb2 {[%clk 0:03:02]}  Nc6 {[%clk 0:01:58]} 5. e3 {[%clk 0:03:02]}  Bd6 {[%clk 0:01:59]} 6. Ne2 {[%clk 0:03:02]}  h5 {[%clk 0:01:58]} 7. h3 {[%clk 0:03:03]}  h4 {[%clk 0:01:41]} 8. g4 {[%clk 0:03:01]}  e4 {[%clk 0:01:37]} 9. d3 {[%clk 0:02:56]}  Be6 {[%clk 0:01:12]} 10. Nd2 {[%clk 0:02:55]}  exd3 {[%clk 0:01:11]} 11. cxd3 {[%clk 0:02:55]}  Qe7 {[%clk 0:00:57]} 12. a3 {[%clk 0:02:52]}  Ne5 {[%clk 0:00:39]} 13. Nf3 {[%clk 0:02:51]}  Nfd7 {[%clk 0:00:23]} 14. Nfd4 {[%clk 0:02:48]}  c6 {[%clk 0:00:21]} 15. b4 {[%clk 0:02:47]}  a5 {[%clk 0:00:20]} 16. b5 {[%clk 0:02:46]}  Nc5 {[%clk 0:00:20]} 17. Nf4 {[%clk 0:02:40]}  g5 {[%clk 0:00:20]} 18. Ndxe6 {[%clk 0:02:29]}  fxe6 {[%clk 0:00:12]} 19. Bxe5 {[%clk 0:02:28]}  Bxe5 {[%clk 0:00:12]} 20. Ng6 {[%clk 0:02:28]}  Bc3+ {[%clk 0:00:06]} 21. Ke2 {[%clk 0:02:26]}  Qf6 {[%clk 0:00:04]} 22. Nxh8 {[%clk 0:02:26]}  Qxh8 {[%clk 0:00:04]} 23. bxc6 {[%clk 0:02:24]}  Bxa1 {[%clk 0:00:03]} 24. Qxa1 {[%clk 0:02:23]}  Qxa1 {[%clk 0:00:03]} 25. Rxa1 {[%clk 0:02:23]}  bxc6 {[%clk 0:00:04]} 26. Rc1 {[%clk 0:02:22]}  Nb3 {[%clk 0:00:03]} 27. Rxc6 {[%clk 0:02:22]}  Kd7 {[%clk 0:00:03]} 28. Rb6 {[%clk 0:02:19]}  a4 {[%clk 0:00:04]} 29. d4 {[%clk 0:02:19]}  Rc8 {[%clk 0:00:04]} 30. Bf1 {[%clk 0:02:09]}  Rc2+ {[%clk 0:00:04]} 31. Kf3 {[%clk 0:02:09]}  Nd2+ {[%clk 0:00:04]} 32. Kg2 {[%clk 0:02:08]}  Ne4 {[%clk 0:00:05]} 33. Bb5+ {[%clk 0:02:08]}  Ke7 {[%clk 0:00:04]} 34. Bd3 {[%clk 0:01:54]}  Rxf2+ {[%clk 0:00:04]} 35. Kg1 {[%clk 0:01:55]}  Ra2 {[%clk 0:00:05]} 36. Bxe4 {[%clk 0:01:55]}  dxe4 {[%clk 0:00:06]} 37. Rb5 {[%clk 0:01:52]}  Rxa3 {[%clk 0:00:05]} 38. Kf2 {[%clk 0:01:53]}  Ra2+ {[%clk 0:00:04]} 39. Ke1 {[%clk 0:01:53]}  a3 {[%clk 0:00:04]} 40. Rxg5 {[%clk 0:01:53]}  Rh2 {[%clk 0:00:03]} 41. Rg7+ {[%clk 0:01:51]}  Kf6 {[%clk 0:00:03]} 42. Ra7 {[%clk 0:01:52]}  a2 {[%clk 0:00:04]} 43. Kf1 {[%clk 0:01:52]}  Rh1+ {[%clk 0:00:03]} 44. Kg2 {[%clk 0:01:53]}  a1=Q {[%clk 0:00:04]} 45. g5+ {[%clk 0:01:54]}  Kxg5 {[%clk 0:00:03]} 46. Rxa1 {[%clk 0:01:54]}  Rxa1 {[%clk 0:00:04]} 47. d5 {[%clk 0:01:54]}  exd5 {[%clk 0:00:04]} 48. Kf2 {[%clk 0:01:54]}  Ra2+ {[%clk 0:00:05]} 49. Kg1 {[%clk 0:01:54]}  d4 {[%clk 0:00:05]} 50. Kh1 {[%clk 0:01:55]}  dxe3 {[%clk 0:00:05]} 51. Kg1 {[%clk 0:01:56]}  Ra1+ {[%clk 0:00:05]} 52. Kg2 {[%clk 0:01:56]}  e2 {[%clk 0:00:06]} 53. Kh2 {[%clk 0:01:57]}  e1=Q {[%clk 0:00:06]} 54. Kg2 {[%clk 0:01:58]}  Qg1# {[%clk 0:00:06]} 0-1

[Event "January 2 Late 2024"]
[Site "https://www.chess.com"]
[Date "2024.01.02"]
[Round "9"]
[White "Bhavikatti, Neil"]
[Black "Agibileg, Uurtsaikh"]
[Result "1-0"]
[Board "79"]
[TimeControl "180+1"]
[WhiteFideId "30935024"]
[BlackFideId "4901606"]
[WhiteElo "2465"]
[BlackElo "2645"]
[WhiteTeam "USA"]
[BlackTeam "MGL"]
[WhiteClock "0:00:11"]
[BlackClock "0:00:14"]

1. d4 {[%clk 0:03:00]}  Nf6 {[%clk 0:02:58]} 2. c4 {[%clk 0:03:01]}  e6 {[%clk 0:02:57]} 3. Nc3 {[%clk 0:03:01]}  Bb4 {[%clk 0:02:56]} 4. Qc2 {[%clk 0:03:02]}  Nc6 {[%clk 0:02:55]} 5. Nf3 {[%clk 0:03:01]}  d6 {[%clk 0:02:55]} 6. Bd2 {[%clk 0:02:59]}  O-O {[%clk 0:02:53]} 7. a3 {[%clk 0:02:59]}  Bxc3 {[%clk 0:02:53]} 8. Bxc3 {[%clk 0:03:00]}  a5 {[%clk 0:02:51]} 9. e3 {[%clk 0:02:54]}  Re8 {[%clk 0:02:52]} 10. Be2 {[%clk 0:02:52]}  e5 {[%clk 0:02:49]} 11. dxe5 {[%clk 0:02:27]}  dxe5 {[%clk 0:02:48]} 12. O-O {[%clk 0:02:27]}  a4 {[%clk 0:02:45]} 13. Rfd1 {[%clk 0:02:17]}  Qe7 {[%clk 0:02:45]} 14. b4 {[%clk 0:02:09]}  axb3 {[%clk 0:02:43]} 15. Qxb3 {[%clk 0:02:09]}  h6 {[%clk 0:02:21]} 16. a4 {[%clk 0:02:09]}  Rb8 {[%clk 0:02:17]} 17. a5 {[%clk 0:02:09]}  Bg4 {[%clk 0:02:17]} 18. Qb2 {[%clk 0:01:51]}  Ne4 {[%clk 0:02:14]} 19. Be1 {[%clk 0:01:51]}  Nc5 {[%clk 0:02:12]} 20. h3 {[%clk 0:01:35]}  Bh5 {[%clk 0:02:12]} 21. Nxe5 {[%clk 0:00:58]}  Qxe5 {[%clk 0:02:06]} 22. Bc3 {[%clk 0:00:58]}  Qg5 {[%clk 0:01:58]} 23. Rd5 {[%clk 0:00:59]}  Bxe2 {[%clk 0:01:12]} 24. Rxg5 {[%clk 0:00:50]}  hxg5 {[%clk 0:01:13]} 25. Qxe2 {[%clk 0:00:51]}  Rbd8 {[%clk 0:01:07]} 26. Rd1 {[%clk 0:00:42]}  f6 {[%clk 0:01:06]} 27. Rd5 {[%clk 0:00:37]}  Ne4 {[%clk 0:01:05]} 28. Qb2 {[%clk 0:00:26]}  Ne7 {[%clk 0:00:58]} 29. Rxd8 {[%clk 0:00:25]}  Rxd8 {[%clk 0:00:59]} 30. Qc2 {[%clk 0:00:16]}  f5 {[%clk 0:00:50]} 31. f3 {[%clk 0:00:17]}  Nc5 {[%clk 0:00:48]} 32. Bb4 {[%clk 0:00:16]}  b6 {[%clk 0:00:42]} 33. Bxc5 {[%clk 0:00:16]}  bxc5 {[%clk 0:00:43]} 34. a6 {[%clk 0:00:17]}  Nc6 {[%clk 0:00:41]} 35. Qa4 {[%clk 0:00:16]}  Na7 {[%clk 0:00:31]} 36. Qa5 {[%clk 0:00:16]}  f4 {[%clk 0:00:25]} 37. Qxc7 {[%clk 0:00:15]}  Rd1+ {[%clk 0:00:24]} 38. Kf2 {[%clk 0:00:15]}  Rd2+ {[%clk 0:00:21]} 39. Ke1 {[%clk 0:00:16]}  fxe3 {[%clk 0:00:21]} 40. Qxa7 {[%clk 0:00:16]}  g4 {[%clk 0:00:17]} 41. hxg4 {[%clk 0:00:15]}  Rxg2 {[%clk 0:00:16]} 42. Qxc5 {[%clk 0:00:14]}  Ra2 {[%clk 0:00:15]} 43. a7 {[%clk 0:00:13]}  e2 {[%clk 0:00:15]} 44. Qc8+ {[%clk 0:00:13]}  Kh7 {[%clk 0:00:14]} 45. a8=Q {[%clk 0:00:11]} 1-0

[Event "January 2 Late 2024"]
[Site "https://www.chess.com"]
[Date "2024.01.02"]
[Round "9"]
[White "Palomo, Franklin Annervys"]
[Black "Salman, Ilhan Serhat"]
[Result "1-0"]
[Board "80"]
[TimeControl "180+1"]
[WhiteFideId "3906965"]
[BlackFideId "6361579"]
[WhiteElo "2643"]
[BlackElo "2445"]
[WhiteTeam "VEN"]
[BlackTeam "TUR"]
[WhiteClock "0:00:27"]
[BlackClock "0:00:12"]

1. Nf3 {[%clk 0:03:00]}  Nf6 {[%clk 0:02:52]} 2. g3 {[%clk 0:03:00]}  Rg8 {[%clk 0:02:52]} 3. Bg2 {[%clk 0:03:01]}  g5 {[%clk 0:02:53]} 4. h3 {[%clk 0:03:01]}  h5 {[%clk 0:02:52]} 5. d4 {[%clk 0:03:00]}  g4 {[%clk 0:02:52]} 6. hxg4 {[%clk 0:03:01]}  hxg4 {[%clk 0:02:53]} 7. Ne5 {[%clk 0:03:01]}  d6 {[%clk 0:02:52]} 8. Nd3 {[%clk 0:03:02]}  c6 {[%clk 0:02:51]} 9. c4 {[%clk 0:02:59]}  Bf5 {[%clk 0:02:50]} 10. Nc3 {[%clk 0:02:58]}  Nbd7 {[%clk 0:02:49]} 11. e4 {[%clk 0:02:57]}  Bg6 {[%clk 0:02:45]} 12. Bf4 {[%clk 0:02:57]}  Qa5 {[%clk 0:02:43]} 13. Qd2 {[%clk 0:02:50]}  O-O-O {[%clk 0:02:40]} 14. O-O-O {[%clk 0:02:42]}  Nb6 {[%clk 0:02:37]} 15. b3 {[%clk 0:02:39]}  e5 {[%clk 0:02:21]} 16. Be3 {[%clk 0:02:36]}  Be7 {[%clk 0:01:56]} 17. Kb2 {[%clk 0:02:30]}  Nfd7 {[%clk 0:01:31]} 18. d5 {[%clk 0:02:12]}  c5 {[%clk 0:01:25]} 19. Ka1 {[%clk 0:02:05]}  f5 {[%clk 0:01:21]} 20. exf5 {[%clk 0:02:01]}  Bxf5 {[%clk 0:01:21]} 21. Qb2 {[%clk 0:01:50]}  Bf6 {[%clk 0:01:15]} 22. Ne4 {[%clk 0:01:49]}  Bxe4 {[%clk 0:01:06]} 23. Bxe4 {[%clk 0:01:50]}  Rh8 {[%clk 0:01:02]} 24. a3 {[%clk 0:01:45]}  Qa6 {[%clk 0:00:56]} 25. Qc1 {[%clk 0:01:19]}  Kb8 {[%clk 0:00:55]} 26. Ka2 {[%clk 0:01:18]}  Rdg8 {[%clk 0:00:47]} 27. Qc2 {[%clk 0:01:17]}  Bg7 {[%clk 0:00:46]} 28. Bf5 {[%clk 0:00:52]}  Nf6 {[%clk 0:00:45]} 29. Nb2 {[%clk 0:00:48]}  Rf8 {[%clk 0:00:39]} 30. Rdf1 {[%clk 0:00:45]}  Nbd7 {[%clk 0:00:35]} 31. Nd1 {[%clk 0:00:43]}  Qb6 {[%clk 0:00:34]} 32. Nc3 {[%clk 0:00:43]}  Qd8 {[%clk 0:00:33]} 33. Bg5 {[%clk 0:00:39]}  Qe8 {[%clk 0:00:28]} 34. Qd3 {[%clk 0:00:32]}  Rxh1 {[%clk 0:00:18]} 35. Rxh1 {[%clk 0:00:33]}  Rh8 {[%clk 0:00:18]} 36. Qd1 {[%clk 0:00:31]}  Rxh1 {[%clk 0:00:17]} 37. Qxh1 {[%clk 0:00:32]}  Qh8 {[%clk 0:00:17]} 38. Qxh8+ {[%clk 0:00:31]}  Bxh8 {[%clk 0:00:18]} 39. Kb2 {[%clk 0:00:27]}  a6 {[%clk 0:00:17]} 40. Kc2 {[%clk 0:00:27]}  Kc7 {[%clk 0:00:17]} 41. Kd3 {[%clk 0:00:28]}  Kd8 {[%clk 0:00:17]} 42. Ne4 {[%clk 0:00:28]}  Ke7 {[%clk 0:00:18]} 43. Bxg4 {[%clk 0:00:28]}  b6 {[%clk 0:00:14]} 44. Bxd7 {[%clk 0:00:27]}  Kxd7 {[%clk 0:00:12]} 45. Bxf6 {[%clk 0:00:27]} 1-0

[Event "January 2 Late 2024"]
[Site "https://www.chess.com"]
[Date "2024.01.02"]
[Round "9"]
[White "Morales Garcia, Sergio Joshafatt"]
[Black "Goryachkina, Aleksandra"]
[Result "0-1"]
[Board "82"]
[TimeControl "180+1"]
[WhiteFideId "5106249"]
[BlackFideId "4147103"]
[WhiteElo "2443"]
[BlackElo "2633"]
[WhiteTeam "MEX"]
[BlackTeam "FID"]
[WhiteClock "0:00:00"]
[BlackClock "0:01:42"]

1. d4 {[%clk 0:03:00]}  Nf6 {[%clk 0:02:59]} 2. c4 {[%clk 0:03:01]}  e6 {[%clk 0:02:59]} 3. Nf3 {[%clk 0:03:01]}  d5 {[%clk 0:02:59]} 4. Nc3 {[%clk 0:03:01]}  Nbd7 {[%clk 0:02:59]} 5. Bg5 {[%clk 0:03:01]}  Be7 {[%clk 0:02:59]} 6. e3 {[%clk 0:02:59]}  h6 {[%clk 0:02:59]} 7. Bh4 {[%clk 0:02:57]}  O-O {[%clk 0:02:57]} 8. Qc2 {[%clk 0:02:54]}  a6 {[%clk 0:02:48]} 9. a3 {[%clk 0:02:47]}  dxc4 {[%clk 0:02:47]} 10. Bxc4 {[%clk 0:02:48]}  b5 {[%clk 0:02:47]} 11. Bd3 {[%clk 0:02:47]}  Bb7 {[%clk 0:02:47]} 12. b4 {[%clk 0:02:36]}  a5 {[%clk 0:02:34]} 13. Rb1 {[%clk 0:02:28]}  Bxf3 {[%clk 0:02:22]} 14. gxf3 {[%clk 0:02:28]}  c6 {[%clk 0:02:22]} 15. O-O {[%clk 0:02:22]}  axb4 {[%clk 0:02:20]} 16. axb4 {[%clk 0:02:21]}  Rc8 {[%clk 0:02:20]} 17. Bg3 {[%clk 0:02:15]}  Nb6 {[%clk 0:02:18]} 18. f4 {[%clk 0:02:09]}  Nbd5 {[%clk 0:02:15]} 19. Nxd5 {[%clk 0:02:01]}  Nxd5 {[%clk 0:02:14]} 20. Qd2 {[%clk 0:01:38]}  f5 {[%clk 0:02:13]} 21. e4 {[%clk 0:01:21]}  fxe4 {[%clk 0:02:08]} 22. Bxe4 {[%clk 0:01:21]}  Bd6 {[%clk 0:02:08]} 23. Bxd5 {[%clk 0:00:36]}  exd5 {[%clk 0:02:09]} 24. Rfe1 {[%clk 0:00:20]}  Qf6 {[%clk 0:02:08]} 25. Rbc1 {[%clk 0:00:17]}  Bxf4 {[%clk 0:02:04]} 26. Qxf4 {[%clk 0:00:10]}  Qxf4 {[%clk 0:02:04]} 27. Bxf4 {[%clk 0:00:11]}  Rxf4 {[%clk 0:02:05]} 28. Re7 {[%clk 0:00:09]}  Rxd4 {[%clk 0:02:03]} 29. Rc3 {[%clk 0:00:00]}  Rxb4 {[%clk 0:01:42]} 0-1

[Event "January 2 Late 2024"]
[Site "https://www.chess.com"]
[Date "2024.01.02"]
[Round "9"]
[White "Titus, Andrew"]
[Black "Travkina, Anastasia"]
[Result "0-1"]
[Board "84"]
[TimeControl "180+1"]
[WhiteFideId "2059770"]
[BlackFideId "24129151"]
[WhiteElo "2600"]
[BlackElo "2439"]
[WhiteTeam "USA"]
[BlackTeam "RUS"]
[WhiteClock "0:00:53"]
[BlackClock "0:01:34"]

1. e4 {[%clk 0:03:00]}  c5 {[%clk 0:03:00]} 2. Nf3 {[%clk 0:02:52]}  d6 {[%clk 0:03:00]} 3. d4 {[%clk 0:02:51]}  cxd4 {[%clk 0:03:01]} 4. Nxd4 {[%clk 0:02:51]}  Nf6 {[%clk 0:03:02]} 5. Nc3 {[%clk 0:02:51]}  g6 {[%clk 0:03:02]} 6. Be3 {[%clk 0:02:50]}  Bg7 {[%clk 0:03:03]} 7. f3 {[%clk 0:02:50]}  O-O {[%clk 0:03:03]} 8. Qd2 {[%clk 0:02:48]}  Nc6 {[%clk 0:03:04]} 9. g4 {[%clk 0:02:48]}  Be6 {[%clk 0:03:03]} 10. Nxe6 {[%clk 0:02:47]}  fxe6 {[%clk 0:03:03]} 11. Bc4 {[%clk 0:02:45]}  Qc8 {[%clk 0:02:56]} 12. Bb3 {[%clk 0:02:35]}  Ne5 {[%clk 0:02:54]} 13. O-O-O {[%clk 0:02:23]}  Nc4 {[%clk 0:02:53]} 14. Bxc4 {[%clk 0:02:19]}  Qxc4 {[%clk 0:02:54]} 15. h4 {[%clk 0:02:11]}  Nd7 {[%clk 0:02:50]} 16. Bh6 {[%clk 0:02:01]}  Bxc3 {[%clk 0:02:41]} 17. bxc3 {[%clk 0:01:53]}  Qxa2 {[%clk 0:02:21]} 18. Qe3 {[%clk 0:01:47]}  Ne5 {[%clk 0:02:08]} 19. Qd4 {[%clk 0:01:36]}  Rxf3 {[%clk 0:01:43]} 20. h5 {[%clk 0:01:14]}  Rf2 {[%clk 0:01:35]} 21. Qxf2 {[%clk 0:00:53]}  Nc4 {[%clk 0:01:34]} 0-1

[Event "January 2 Late 2024"]
[Site "https://www.chess.com"]
[Date "2024.01.02"]
[Round "9"]
[White "Banerjee, Supratit"]
[Black "Jaque Gutierrez, Matias"]
[Result "1-0"]
[Board "86"]
[TimeControl "180+1"]
[WhiteFideId "2410079"]
[BlackFideId "3426980"]
[WhiteElo "2555"]
[BlackElo "2434"]
[WhiteTeam "SCO"]
[BlackTeam "CHI"]
[WhiteClock "0:00:05"]
[BlackClock "0:00:00"]

1. e4 {[%clk 0:03:00]}  c5 {[%clk 0:03:00]} 2. c3 {[%clk 0:03:00]}  Nf6 {[%clk 0:03:00]} 3. e5 {[%clk 0:03:00]}  Nd5 {[%clk 0:03:00]} 4. d4 {[%clk 0:03:00]}  cxd4 {[%clk 0:03:01]} 5. cxd4 {[%clk 0:03:01]}  e6 {[%clk 0:03:00]} 6. Nf3 {[%clk 0:03:01]}  d6 {[%clk 0:03:01]} 7. Nc3 {[%clk 0:03:01]}  Nxc3 {[%clk 0:02:59]} 8. bxc3 {[%clk 0:03:01]}  Qc7 {[%clk 0:03:00]} 9. Qc2 {[%clk 0:03:00]}  Nd7 {[%clk 0:02:53]} 10. exd6 {[%clk 0:02:58]}  Bxd6 {[%clk 0:02:54]} 11. Bd3 {[%clk 0:02:58]}  b6 {[%clk 0:02:41]} 12. O-O {[%clk 0:02:55]}  Bb7 {[%clk 0:02:41]} 13. Be4 {[%clk 0:02:54]}  Bxe4 {[%clk 0:02:37]} 14. Qxe4 {[%clk 0:02:53]}  O-O {[%clk 0:02:38]} 15. Bd2 {[%clk 0:02:52]}  Rac8 {[%clk 0:02:36]} 16. Rac1 {[%clk 0:02:51]}  Qc4 {[%clk 0:02:31]} 17. Ng5 {[%clk 0:02:47]}  Nf6 {[%clk 0:02:30]} 18. Qh4 {[%clk 0:02:46]}  Qxa2 {[%clk 0:02:20]} 19. Nf3 {[%clk 0:02:44]}  Qd5 {[%clk 0:02:00]} 20. Bg5 {[%clk 0:02:40]}  Ne4 {[%clk 0:01:58]} 21. Be3 {[%clk 0:02:36]}  Rxc3 {[%clk 0:01:53]} 22. Ng5 {[%clk 0:02:35]}  Nxg5 {[%clk 0:00:52]} 23. Rxc3 {[%clk 0:02:33]}  Ne4 {[%clk 0:00:53]} 24. Rcc1 {[%clk 0:02:26]}  a5 {[%clk 0:00:52]} 25. Rfe1 {[%clk 0:02:20]}  Bb4 {[%clk 0:00:49]} 26. Red1 {[%clk 0:02:14]}  a4 {[%clk 0:00:35]} 27. Ra1 {[%clk 0:02:03]}  a3 {[%clk 0:00:34]} 28. Rdb1 {[%clk 0:02:02]}  Bd6 {[%clk 0:00:22]} 29. Rxb6 {[%clk 0:01:58]}  Rc8 {[%clk 0:00:23]} 30. Rbb1 {[%clk 0:01:46]}  h6 {[%clk 0:00:23]} 31. h3 {[%clk 0:01:39]}  a2 {[%clk 0:00:23]} 32. Re1 {[%clk 0:01:19]}  Bb4 {[%clk 0:00:23]} 33. Re2 {[%clk 0:01:13]}  Nc3 {[%clk 0:00:23]} 34. Rc2 {[%clk 0:00:54]}  Qb3 {[%clk 0:00:23]} 35. Rcxa2 {[%clk 0:00:17]}  Nxa2 {[%clk 0:00:23]} 36. Qg4 {[%clk 0:00:13]}  Kh8 {[%clk 0:00:16]} 37. Qh4 {[%clk 0:00:12]}  Kh7 {[%clk 0:00:10]} 38. Qe4+ {[%clk 0:00:11]}  Kh8 {[%clk 0:00:09]} 39. Qh4 {[%clk 0:00:10]}  Nc3 {[%clk 0:00:09]} 40. Ra7 {[%clk 0:00:07]}  Qd1+ {[%clk 0:00:06]} 41. Kh2 {[%clk 0:00:07]}  Ne2 {[%clk 0:00:06]} 42. f4 {[%clk 0:00:06]}  Qd3 {[%clk 0:00:04]} 43. Qf2 {[%clk 0:00:06]}  Nc3 {[%clk 0:00:03]} 44. Rxf7 {[%clk 0:00:06]}  Ne4 {[%clk 0:00:03]} 45. Qf3 {[%clk 0:00:05]}  Rc2 {[%clk 0:00:02]} 46. Qg4 {[%clk 0:00:05]}  g6 {[%clk 0:00:00]} 47. Qxg6 {[%clk 0:00:05]} 1-0

[Event "January 2 Late 2024"]
[Site "https://www.chess.com"]
[Date "2024.01.02"]
[Round "9"]
[White "Lin, Bryan Enming"]
[Black "Rees, Ioan"]
[Result "0-1"]
[Board "87"]
[TimeControl "180+1"]
[WhiteFideId "30987121"]
[BlackFideId "1801236"]
[WhiteElo "2553"]
[BlackElo "2428"]
[WhiteTeam "USA"]
[BlackTeam "WLS"]
[WhiteClock "0:00:06"]
[BlackClock "0:00:21"]

1. e4 {[%clk 0:02:58]}  c6 {[%clk 0:02:58]} 2. Nf3 {[%clk 0:02:57]}  d5 {[%clk 0:02:59]} 3. exd5 {[%clk 0:02:57]}  cxd5 {[%clk 0:03:00]} 4. Ne5 {[%clk 0:02:58]}  Nc6 {[%clk 0:03:00]} 5. d4 {[%clk 0:02:59]}  e6 {[%clk 0:03:00]} 6. Bb5 {[%clk 0:02:55]}  Bd7 {[%clk 0:03:01]} 7. Nxd7 {[%clk 0:02:56]}  Qxd7 {[%clk 0:03:02]} 8. c3 {[%clk 0:02:56]}  Nf6 {[%clk 0:03:00]} 9. Bg5 {[%clk 0:02:57]}  Ne4 {[%clk 0:02:58]} 10. Be3 {[%clk 0:02:56]}  Be7 {[%clk 0:02:54]} 11. Nd2 {[%clk 0:02:56]}  Nd6 {[%clk 0:02:52]} 12. Bd3 {[%clk 0:02:56]}  O-O {[%clk 0:02:49]} 13. O-O {[%clk 0:02:55]}  b5 {[%clk 0:02:49]} 14. Nf3 {[%clk 0:02:53]}  Rfc8 {[%clk 0:02:44]} 15. Qe2 {[%clk 0:02:37]}  b4 {[%clk 0:02:33]} 16. Rac1 {[%clk 0:02:34]}  a5 {[%clk 0:02:29]} 17. Rfd1 {[%clk 0:02:27]}  bxc3 {[%clk 0:02:28]} 18. bxc3 {[%clk 0:02:26]}  a4 {[%clk 0:02:24]} 19. h4 {[%clk 0:02:23]}  Ne4 {[%clk 0:02:11]} 20. c4 {[%clk 0:02:16]}  Ba3 {[%clk 0:02:05]} 21. Rc2 {[%clk 0:02:00]}  Nb4 {[%clk 0:02:04]} 22. Ne5 {[%clk 0:02:00]}  Qe7 {[%clk 0:01:56]} 23. Bxe4 {[%clk 0:01:58]}  dxe4 {[%clk 0:01:53]} 24. Rc3 {[%clk 0:01:58]}  Nd5 {[%clk 0:01:50]} 25. Rc2 {[%clk 0:01:54]}  Nxe3 {[%clk 0:01:43]} 26. Qxe3 {[%clk 0:01:55]}  Bd6 {[%clk 0:01:42]} 27. Qxe4 {[%clk 0:01:54]}  Bxe5 {[%clk 0:01:38]} 28. dxe5 {[%clk 0:01:55]}  Ra5 {[%clk 0:01:36]} 29. Rcd2 {[%clk 0:01:54]}  Rac5 {[%clk 0:01:30]} 30. Rd4 {[%clk 0:01:48]}  h5 {[%clk 0:01:25]} 31. g3 {[%clk 0:01:45]}  g6 {[%clk 0:01:25]} 32. Qf4 {[%clk 0:01:40]}  R5c7 {[%clk 0:01:20]} 33. Kh2 {[%clk 0:01:33]}  a3 {[%clk 0:01:18]} 34. R1d3 {[%clk 0:01:32]}  Kg7 {[%clk 0:01:09]} 35. Rf3 {[%clk 0:01:28]}  Kg8 {[%clk 0:01:04]} 36. Rfd3 {[%clk 0:01:17]}  Kg7 {[%clk 0:01:03]} 37. Kh3 {[%clk 0:01:12]}  Rb8 {[%clk 0:01:01]} 38. Qe3 {[%clk 0:01:08]}  Rb2 {[%clk 0:00:58]} 39. Rxa3 {[%clk 0:01:03]}  Rd7 {[%clk 0:00:32]} 40. Rxd7 {[%clk 0:00:57]}  Qxd7 {[%clk 0:00:33]} 41. Ra7 {[%clk 0:00:47]}  Qc6 {[%clk 0:00:28]} 42. f3 {[%clk 0:00:29]}  Qxc4 {[%clk 0:00:26]} 43. Qe1 {[%clk 0:00:13]}  Qc2 {[%clk 0:00:22]} 44. Qf1 {[%clk 0:00:06]}  Qh2# {[%clk 0:00:21]} 0-1

[Event "January 2 Late 2024"]
[Site "https://www.chess.com"]
[Date "2024.01.02"]
[Round "9"]
[White "Tao, Sihan"]
[Black "Carrasco Miranda, Andres"]
[Result "0-1"]
[Board "91"]
[TimeControl "180+1"]
[WhiteFideId "30982677"]
[BlackFideId "3405990"]
[WhiteElo "2517"]
[BlackElo "2413"]
[WhiteTeam "USA"]
[BlackTeam "CHI"]
[WhiteClock "0:00:52"]
[BlackClock "0:00:10"]

1. e4 {[%clk 0:03:00]}  e5 {[%clk 0:02:53]} 2. Nf3 {[%clk 0:02:59]}  Nc6 {[%clk 0:02:53]} 3. Bc4 {[%clk 0:02:57]}  Bc5 {[%clk 0:02:52]} 4. d3 {[%clk 0:02:55]}  Nf6 {[%clk 0:02:52]} 5. Nc3 {[%clk 0:02:55]}  h6 {[%clk 0:02:48]} 6. O-O {[%clk 0:02:53]}  d6 {[%clk 0:02:48]} 7. Na4 {[%clk 0:02:52]}  Bb6 {[%clk 0:02:46]} 8. a3 {[%clk 0:02:52]}  Be6 {[%clk 0:02:46]} 9. Bxe6 {[%clk 0:02:51]}  fxe6 {[%clk 0:02:47]} 10. h3 {[%clk 0:02:51]}  O-O {[%clk 0:02:46]} 11. c3 {[%clk 0:02:48]}  Ne7 {[%clk 0:02:45]} 12. b4 {[%clk 0:02:46]}  Ng6 {[%clk 0:02:44]} 13. Nxb6 {[%clk 0:02:46]}  axb6 {[%clk 0:02:43]} 14. a4 {[%clk 0:02:46]}  Qd7 {[%clk 0:02:42]} 15. Be3 {[%clk 0:02:45]}  Ra6 {[%clk 0:02:09]} 16. a5 {[%clk 0:02:23]}  Rfa8 {[%clk 0:02:07]} 17. Qb3 {[%clk 0:02:22]}  Nh5 {[%clk 0:01:47]} 18. Rab1 {[%clk 0:02:17]}  Nhf4 {[%clk 0:01:25]} 19. axb6 {[%clk 0:02:15]}  cxb6 {[%clk 0:01:25]} 20. d4 {[%clk 0:02:09]}  Ra3 {[%clk 0:01:21]} 21. Qc2 {[%clk 0:02:05]}  Rxc3 {[%clk 0:01:20]} 22. Qd2 {[%clk 0:02:02]}  Rd3 {[%clk 0:01:18]} 23. Qc2 {[%clk 0:02:01]}  Raa3 {[%clk 0:01:14]} 24. dxe5 {[%clk 0:01:59]}  dxe5 {[%clk 0:01:03]} 25. Kh2 {[%clk 0:01:53]}  Rac3 {[%clk 0:00:44]} 26. Qb2 {[%clk 0:01:48]}  Kh7 {[%clk 0:00:43]} 27. Nxe5 {[%clk 0:01:46]}  Nxe5 {[%clk 0:00:40]} 28. Bxf4 {[%clk 0:01:46]}  Nc4 {[%clk 0:00:30]} 29. Qe2 {[%clk 0:01:43]}  e5 {[%clk 0:00:29]} 30. Bg3 {[%clk 0:01:42]}  Rd2 {[%clk 0:00:15]} 31. Rfd1 {[%clk 0:01:21]}  Rcd3 {[%clk 0:00:13]} 32. Rxd2 {[%clk 0:01:21]}  Nxd2 {[%clk 0:00:14]} 33. Rd1 {[%clk 0:01:20]}  Nf3+ {[%clk 0:00:13]} 34. Qxf3 {[%clk 0:01:13]}  Rxd1 {[%clk 0:00:14]} 35. Bxe5 {[%clk 0:01:13]}  Rd3 {[%clk 0:00:13]} 36. Qf4 {[%clk 0:01:06]}  Qe6 {[%clk 0:00:13]} 37. Bb2 {[%clk 0:01:05]}  Qg6 {[%clk 0:00:12]} 38. g4 {[%clk 0:01:04]}  Rb3 {[%clk 0:00:12]} 39. Bc1 {[%clk 0:00:56]}  Rxb4 {[%clk 0:00:11]} 40. f3 {[%clk 0:00:57]}  Rc4 {[%clk 0:00:11]} 41. Be3 {[%clk 0:00:57]}  Rc2+ {[%clk 0:00:11]} 42. Kg3 {[%clk 0:00:57]}  Qf6 {[%clk 0:00:10]} 43. Qb8 {[%clk 0:00:53]}  Qc6 {[%clk 0:00:09]} 44. h4 {[%clk 0:00:52]}  Qc7+ {[%clk 0:00:09]} 45. Bf4 {[%clk 0:00:52]}  Qxb8 {[%clk 0:00:09]} 46. Bxb8 {[%clk 0:00:52]}  b5 {[%clk 0:00:09]} 47. e5 {[%clk 0:00:52]}  b4 {[%clk 0:00:10]} 48. f4 {[%clk 0:00:52]}  b3 {[%clk 0:00:10]} 49. e6 {[%clk 0:00:51]}  b2 {[%clk 0:00:10]} 50. e7 {[%clk 0:00:52]}  Re2 {[%clk 0:00:10]} 51. Be5 {[%clk 0:00:52]}  b1=Q {[%clk 0:00:09]} 52. e8=Q {[%clk 0:00:52]}  Qd3# {[%clk 0:00:10]} 0-1